bitfinex-derivatives/quotes_SOLF0:USTF0_20250712
["timestamp","ask_amount","ask_price","bid_price","bid_amount"]
[1752354293942,3.41,159.5,159.46,3.33]
[1752354294238,6.2678,159.49,159.46,6.2689]
[1752354294438,9.6778,159.49,159.48,3.33]
[1752354294630,9.72596408,159.49,159.48,3.33]
[1752354295141,9.6786,159.47,159.46,3.33]
[1752354295543,6.2692,159.46,159.45,3.33]
[1752354295842,9.6792,159.46,159.45,3.33]
[1752354296243,3.41,159.46,159.45,3.33]
[1752354296537,9.6787,159.47,159.44,6.2697]
[1752354296742,9.6787,159.47,159.46,3.33]
[1752354298349,3.41,159.47,159.44,3.33]
[1752354298644,3.41,159.47,159.45,3.33]
[1752354299444,6.2689,159.46,159.45,3.33]
[1752354299640,9.6789,159.46,159.45,3.33]
[1752354300345,9.6793,159.45,159.44,3.33]
[1752354300547,3.41,159.46,159.41,3.33]
[1752354301047,3.08803371,159.5,159.45,3.33]
[1752354301250,3.41,159.51,159.45,6.41803371]
[1752354301449,3.41,159.51,159.46,3.33]
[1752354301747,0.04361446,159.49,159.46,3.33]
[1752354302245,0.04361446,159.49,159.48,9.5982]
[1752354302540,3.41,159.53,159.48,9.5982]
[1752354302734,6.2669,159.52,159.49,6.2677]
[1752354302939,9.6769,159.52,159.5,3.33]
[1752354303234,9.72254916,159.52,159.5,3.33]
[1752354303640,3.45564916,159.52,159.5,3.33]
[1752354303840,3.45564916,159.52,159.51,3.33]
[1752354304036,3.45564916,159.52,159.51,9.597]
[1752354304037,0.04564916,159.52,159.51,9.597]
[1752354304237,3.41,159.55,159.52,3.33]
[1752354304440,182.16,159.56,159.53,3.33]
[1752354304646,3.41,159.54,159.53,3.33]
[1752354305448,9.6754,159.55,159.53,3.33]
[1752354305640,3.41,159.55,159.53,9.6962]
[1752354305841,185.7,159.56,159.55,3.43]
[1752354307150,182.16,159.56,159.55,3.43]
[1752354308747,3.54,159.58,159.55,3.43]
[1752354309044,3.54,159.58,159.55,6.51803371]
[1752354309249,3.54,159.58,159.56,3.43]
[1752354309448,6.264,159.59,159.56,3.43]
[1752354309648,9.804,159.59,159.56,3.43]
[1752354310250,6.2643,159.58,159.56,3.43]
[1752354310446,9.8043,159.58,159.57,3.43]
[1752354312048,6.264,159.59,159.57,3.43]
[1752354312254,9.804,159.59,159.58,3.43]
[1752354314143,182.12,159.6,159.58,3.43]
[1752354314345,182.12,159.6,159.56,3.43]
[1752354314555,3.54,159.59,159.56,3.43]
[1752354314854,3.54,159.59,159.56,3.47129638]
[1752354315449,3.54,159.59,159.56,9.73609638]
[1752354315655,182.12,159.6,159.57,6.51803371]
[1752354315848,182.12,159.6,159.58,3.43]
[1752354317455,188.3835,159.6,159.58,3.43]
[1752354319057,182.12,159.6,159.58,3.43]
[1752354320562,182.12,159.6,159.57,3.43]
[1752354320754,182.12,159.6,159.58,3.43]
[1752354320755,3.53,159.59,159.58,3.43]
[1752354322057,6.2641,159.59,159.58,3.43]
[1752354322458,9.7941,159.59,159.58,3.43]
[1752354323154,6.2641,159.59,159.58,3.43]
[1752354325058,191.9136,159.6,159.58,3.43]
[1752354326860,6.2638,159.59,159.56,6.30609638]
[1752354327360,6.2638,159.59,159.57,3.43]
[1752354327561,188.3835,159.6,159.57,9.6946]
[1752354327860,188.3835,159.6,159.57,3.43]
[1752354327861,185.65,159.6,159.57,3.43]
[1752354328061,9.7942,159.59,159.57,3.43]
[1752354328958,3.53,159.58,159.57,3.43]
[1752354330462,9.7941,159.59,159.57,3.43]
[1752354330760,185.65,159.6,159.57,3.43]
[1752354331162,3.53,159.59,159.57,3.43]
[1752354331662,9.794,159.59,159.57,3.43]
[1752354332462,191.8436,159.6,159.58,3.43]
[1752354332657,188.3036,159.6,159.58,3.43]
[1752354333668,191.8436,159.6,159.58,3.43]
[1752354335165,6.2638,159.59,159.58,3.43]
[1752354335467,9.8038,159.59,159.58,3.43]
[1752354339370,6.2638,159.59,159.58,3.43]
[1752354339666,188.3036,159.6,159.58,3.43]
[1752354339970,191.8436,159.6,159.58,3.43]
[1752354342072,188.3036,159.6,159.58,3.43]
[1752354342275,182.04,159.6,159.58,3.43]
[1752354342774,6.2629,159.62,159.59,6.2638]
[1752354342969,3.54,159.61,159.6,3.49]
[1752354345970,9.8025,159.63,159.61,3.49]
[1752354346166,3.54,159.63,159.61,3.49]
[1752354346373,6.2627,159.62,159.61,3.49]
[1752354346671,3.54,159.63,159.61,3.49]
[1752354347569,9.8025,159.63,159.61,3.49]
[1752354347970,3.54,159.65,159.61,3.49]
[1752354348175,3.54,159.65,159.63,3.49]
[1752354349070,9.8018,159.65,159.63,3.49]
[1752354349774,9.8019,159.64,159.61,3.08803371]
[1752354349981,3.54,159.64,159.6,0.0399262]
[1752354350182,3.54,159.64,159.61,3.49]
[1752354350675,3.54,159.63,159.61,3.49]
[1752354351877,9.8023,159.63,159.61,3.49]
[1752354352967,3.54,159.64,159.62,3.49]
[1752354353170,3.54,159.66,159.62,3.49]
[1752354353675,3.54,159.65,159.62,3.49]
[1752354354078,3.54,159.65,159.62,9.7526]
[1752354354270,3.54,159.65,159.63,3.49]
[1752354354776,9.8016,159.65,159.63,3.49]
[1752354355471,6.2619,159.64,159.63,3.49]
[1752354355678,3.54,159.65,159.63,3.49]
[1752354356379,726.82,159.67,159.63,6.57803371]
[1752354356575,3.54,159.66,159.64,3.49]
[1752354357373,6.2615,159.65,159.64,3.49]
[1752354358077,726.82,159.67,159.64,3.49]
[1752354358275,3.54,159.7,159.65,3.08803371]
[1752354358482,3.54,159.68,159.66,3.49]
[1752354358677,6.2611,159.67,159.65,3.08803371]
[1752354358880,9.8011,159.67,159.65,3.08803371]
[1752354359082,9.8011,159.67,159.65,3.13272932]
[1752354359379,3.54,159.68,159.66,3.49]
[1752354359881,3.54,159.7,159.66,3.49]
[1752354360077,3.08803371,159.72,159.66,3.49]
[1752354360078,181.9,159.69,159.66,3.49]
[1752354360377,185.44,159.69,159.66,3.49]
[1752354360581,191.7001,159.69,159.66,9.751]
[1752354360784,181.9,159.69,159.68,3.49]
[1752354361172,3.54,159.72,159.66,3.49]
[1752354361681,3.54,159.7,159.66,3.49]
[1752354361877,3.54,159.68,159.65,0.04469561]
[1752354362080,191.68,159.69,159.66,9.751]
[1752354362282,3.54,159.68,159.66,3.49]
[1752354363074,181.88,159.69,159.65,0.04469561]
[1752354363075,3.54,159.66,159.65,0.04469561]
[1752354363483,9.8011,159.66,159.65,0.04469561]
[1752354364579,6.2619,159.64,159.59,3.08803371]
[1752354364779,3.54,159.64,159.62,3.49]
[1752354365281,6.2624,159.63,159.62,3.49]
[1752354365479,9.8024,159.63,159.62,3.49]
[1752354366080,3.50011948,159.64,159.62,3.49]
[1752354366775,0.04011948,159.64,159.62,3.49]
[1752354367486,0.04011948,159.64,159.63,12.67033371]
[1752354367886,6.2609,159.67,159.63,12.67033371]
[1752354368083,6.2609,159.67,159.64,3.32]
[1752354368385,0.0417601,159.65,159.64,3.32]
[1752354368583,0.0417601,159.65,159.64,6.2619]
[1752354368882,0.0417601,159.65,159.64,9.5819]
[1752354369889,0.0417601,159.65,159.64,3.32]
[1752354371085,0.0417601,159.65,159.64,9.5819]
[1752354372492,0.0417601,159.65,159.64,3.32]
[1752354373487,0.0417601,159.65,159.64,6.40803371]
[1752354375090,0.0417601,159.65,159.64,12.66993371]
[1752354375989,0.0417601,159.65,159.64,6.40803371]
[1752354379093,0.0417601,159.65,159.64,12.66993371]
[1752354379285,0.0417601,159.65,159.64,6.40803371]
[1752354380601,3.5017601,159.65,159.64,3.32]
[1752354382194,3.5017601,159.65,159.63,3.32]
[1752354382499,3.46,159.64,159.63,3.32]
[1752354383088,9.7219,159.64,159.63,3.32]
[1752354383600,3.46,159.64,159.63,3.32]
[1752354384402,9.7219,159.64,159.63,3.32]
[1752354385096,3.46,159.64,159.63,3.32]
[1752354385989,9.7219,159.64,159.63,3.32]
[1752354386190,3.46,159.64,159.63,3.32]
[1752354386598,0.0417601,159.65,159.63,3.32]
[1752354386796,3.5017601,159.65,159.63,3.32]
[1752354387198,9.7635601,159.65,159.63,3.32]
[1752354388605,9.7635601,159.65,159.63,9.5822]
[1752354388802,3.5017601,159.65,159.64,3.32]
[1752354394613,9.7632601,159.65,159.64,3.32]
[1752354407727,5.47014121,159.65,159.6,5.2679228]
[1752354407932,5.50838111,159.63,159.61,3.57]
[1752354408125,3.54,159.62,159.61,3.57]
[1752354408526,9.8027,159.62,159.61,3.57]
[1752354408727,3.54,159.62,159.58,1.96838111]
[1752354408926,3.54,159.62,159.6,3.57]
[1752354409225,6.263,159.61,159.6,3.57]
[1752354409426,9.803,159.61,159.6,3.57]
[1752354410634,11.77138111,159.61,159.6,3.57]
[1752354411131,3.54,159.61,159.6,3.57]
[1752354411835,9.8028,159.62,159.6,3.57]
[1752354412337,3.54,159.61,159.6,3.57]
[1752354413938,0.04483101,159.63,159.59,3.07708715]
[1752354414134,0.04483101,159.63,159.62,6.64708715]
[1752354414633,3.54,159.66,159.63,3.57]
[1752354414936,0.04741369,159.64,159.63,3.57]
[1752354415138,0.04741369,159.64,159.63,9.8323]
[1752354434852,0.04741369,159.64,159.63,11.80011417]
[1752354444758,3.56741369,159.64,159.63,3.57]
[1752354445759,9.82931369,159.64,159.63,3.57]
[1752354448257,3.56741369,159.64,159.63,3.57]
[1752354448459,3.56741369,159.64,159.63,5.53781417]
[1752354451163,3.56741369,159.64,159.63,11.80011417]
[1752354451363,3.56741369,159.64,159.63,5.53781417]
[1752354453764,3.56741369,159.64,159.63,11.80011417]
[1752354456465,0.04741369,159.64,159.63,11.80011417]
[1752354456764,3.45741369,159.64,159.63,11.80011417]
[1752354460067,3.45741369,159.64,159.63,3.57]
[1752354460269,3.45741369,159.64,159.63,5.53781417]
[1752354465066,3.45741369,159.64,159.63,11.80011417]
[1752354465766,0.04741369,159.64,159.63,11.80011417]
[1752354467865,3.45741369,159.64,159.63,5.53781417]
[1752354469071,3.45741369,159.64,159.63,11.80011417]
[1752354471568,0.04741369,159.64,159.63,11.80011417]
[1752354472173,3.45741369,159.64,159.63,11.80011417]
[1752354475876,3.45741369,159.64,159.63,5.53781417]
[1752354476176,2.01522786,159.64,159.61,3.57]
[1752354476370,1.96949364,159.63,159.6,3.57]
[1752354476571,9.6729,159.62,159.6,3.57]
[1752354476878,3.41,159.61,159.6,3.57]
[1752354481881,9.673,159.61,159.6,3.57]
[1752354482180,3.41,159.6,159.59,3.57]
[1752354487284,1.30741369,159.64,159.59,5.44950014]
[1752354487582,5.29950014,159.63,159.6,3.48]
[1752354488378,6.2629,159.62,159.6,3.48]
[1752354488579,3.33,159.61,159.6,3.48]
[1752354490284,3.33,159.62,159.6,11.71280014]
[1752354490482,1.30741369,159.64,159.62,3.48]
[1752354490685,1.30741369,159.64,159.63,1.96950014]
[1752354490884,1.30741369,159.64,159.63,5.44950014]
[1752354493986,4.63741369,159.64,159.63,5.44950014]
[1752354495781,1.30741369,159.64,159.63,11.71180014]
[1752354497994,1.30741369,159.64,159.63,9.7423]
[1752354498185,1.30741369,159.64,159.63,11.71180014]
[1752354499790,1.30741369,159.64,159.63,5.44950014]
[1752354502196,0.04741369,159.64,159.63,5.44950014]
[1752354502791,0.04741369,159.64,159.63,3.48]
[1752354502992,0.04741369,159.64,159.63,5.44950014]
[1752354503293,0.04741369,159.64,159.63,11.71180014]
[1752354504293,3.37741369,159.64,159.63,3.48]
[1752354506090,9.63931369,159.64,159.63,3.48]
[1752354506392,3.37741369,159.64,159.63,3.48]
[1752354506593,0.04741369,159.64,159.63,3.48]
[1752354507193,0.04741369,159.64,159.63,11.71180014]
[1752354515303,9.63931369,159.64,159.63,5.44950014]
[1752354515506,3.37741369,159.64,159.63,3.48]
[1752354515799,9.63931369,159.64,159.63,3.48]
[1752354515999,3.37741369,159.64,159.62,3.41]
[1752354516401,6.2623,159.63,159.62,3.41]
[1752354516602,9.8023,159.63,159.62,3.41]
[1752354522401,6.30941369,159.64,159.62,3.41]
[1752354522606,9.84941369,159.64,159.62,5.37950014]
[1752354522806,9.84941369,159.64,159.63,3.41]
[1752354527602,6.2627,159.62,159.61,3.41]
[1752354527907,9.8027,159.62,159.61,3.41]
[1752354537112,3.54,159.62,159.61,3.41]
[1752354542517,6.2623,159.63,159.61,3.41]
[1752354542719,9.8123,159.63,159.61,3.41]
[1752354543317,3.55,159.62,159.61,3.41]
[1752354544418,9.8127,159.62,159.61,3.41]
[1752354544813,11.78220014,159.62,159.61,3.41]
[1752354546027,9.8127,159.62,159.61,3.41]
[1752354552229,3.55,159.62,159.61,3.41]
[1752354552631,1.26,159.63,159.61,5.37950014]
[1752354552830,1.26,159.63,159.61,11.64230014]
[1752354553132,1.26,159.63,159.62,3.51]
[1752354553831,4.69,159.63,159.62,3.51]
[1752354554631,3.43,159.63,159.62,3.51]
[1752354557334,0.04741369,159.64,159.63,3.51]
[1752354557527,0.04741369,159.64,159.63,5.47950014]
[1752354557727,0.04741369,159.64,159.63,11.74180014]
[1752354560334,0.04741369,159.64,159.63,5.47950014]
[1752354561533,0.04741369,159.64,159.63,11.74180014]
[1752354562735,0.04741369,159.64,159.63,5.47950014]
[1752354563236,0.04741369,159.64,159.63,3.51]
[1752354563434,0.04741369,159.64,159.63,5.47950014]
[1752354564531,3.47741369,159.64,159.62,3.51]
[1752354565132,9.73931369,159.64,159.63,3.51]
[1752354576442,3.47741369,159.64,159.61,1.96950014]
[1752354576636,3.47,159.61,159.58,5.27031979]
[1752354576938,3.47,159.6,159.58,5.27031979]
[1752354577140,1.96950014,159.59,159.57,3.66]
[1752354577341,3.47,159.57,159.55,3.66]
[1752354577545,11.70490014,159.56,159.55,3.66]
[1752354577749,3.47,159.55,159.53,3.66]
[1752354578047,1.96950014,159.55,159.53,3.66]
[1752354578344,3.47,159.54,159.53,3.66]
[1752354578743,9.7358,159.54,159.53,3.66]
[1752354580849,3.47,159.53,159.51,3.66]
[1752354581247,6.2663,159.53,159.5,6.2673]
[1752354581441,9.7363,159.53,159.51,3.66]
[1752354581945,6.2666,159.52,159.51,3.66]
[1752354582148,3.47,159.53,159.51,3.66]
[1752354583048,3.47,159.52,159.47,8.3513226]
[1752354583248,3.47,159.53,159.47,8.3513226]
[1752354583445,3.08100281,159.52,159.46,5.27031979]
[1752354583650,6.2674,159.5,159.47,6.2683]
[1752354583846,9.7374,159.5,159.48,3.66]
[1752354584248,3.08100281,159.52,159.49,3.66]
[1752354584249,3.47,159.51,159.49,3.66]
[1752354584450,3.5105519,159.51,159.49,3.66]
[1752354586151,9.7775519,159.51,159.49,3.66]
[1752354589657,3.5105519,159.51,159.5,3.66]
[1752354589851,0.0405519,159.51,159.5,3.66]
[1752354592054,3.5105519,159.51,159.5,3.66]
[1752354596962,6.3075519,159.51,159.49,9.9277]
[1752354597160,6.3075519,159.51,159.49,3.66]
[1752354597161,3.47,159.5,159.49,3.66]
[1752354599162,9.7775519,159.51,159.49,3.66]
[1752354599365,9.7775519,159.51,159.49,6.2678]
[1752354599562,9.7775519,159.51,159.5,3.66]
[1752354600765,11.75005322,159.51,159.5,3.66]
[1752354603376,3.5105519,159.51,159.5,3.66]
[1752354603672,5.48305322,159.51,159.5,3.66]
[1752354604171,11.75005322,159.51,159.5,3.66]
[1752354604774,5.48305322,159.51,159.5,3.66]
[1752354605974,11.75005322,159.51,159.5,3.66]
[1752354607470,2.01305322,159.51,159.49,3.35]
[1752354607678,5.52250132,159.5,159.49,3.35]
[1752354608175,11.78990132,159.5,159.49,3.35]
[1752354617981,5.52250132,159.5,159.49,3.35]
[1752354619178,11.78990132,159.5,159.49,3.35]
[1752354620983,5.52250132,159.5,159.49,3.35]
[1752354621685,11.78990132,159.5,159.49,3.35]
[1752354622780,3.55,159.48,159.46,5.23963213]
[1752354622984,5.52250132,159.47,159.45,5.23963213]
[1752354623185,1.97250132,159.46,159.45,5.23963213]
[1752354623386,1.97250132,159.46,159.45,8.58963213]
[1752354623981,1.97250132,159.46,159.45,9.6193]
[1752354624183,1.97250132,159.46,159.45,3.35]
[1752354625087,1.97250132,159.46,159.45,9.6193]
[1752354632287,5.56245412,159.47,159.45,9.6193]
[1752354632491,5.56245412,159.47,159.46,3.35]
[1752354633190,2.01245412,159.47,159.46,9.6189]
[1752354633392,0.0399528,159.47,159.46,9.6189]
[1752354636497,0.0399528,159.47,159.46,3.35]
[1752354637393,2.01245412,159.47,159.46,3.35]
[1752354644196,1.26,159.48,159.46,1.97250132]
[1752354644498,1.26,159.48,159.47,5.35250132]
[1752354645195,1.26,159.48,159.47,11.62100132]
[1752354647099,1.26,159.48,159.47,16.86063345]
[1752354650500,1.26,159.48,159.47,3.38]
[1752354650691,4.72,159.48,159.47,3.38]
[1752354650895,12.96070132,159.48,159.47,3.38]
[1752354653402,9.7285,159.47,159.46,0.04538133]
[1752354653601,11.70100132,159.47,159.46,0.04538133]
[1752354658612,9.7297,159.44,159.43,3.38]
[1752354658799,11.70220132,159.44,159.43,3.38]
[1752354661911,1.97250132,159.44,159.39,6.2715]
[1752354662117,1.97250132,159.4,159.36,1.97250132]
[1752354662314,180.9,159.47,159.37,3.38]
[1752354662315,3.46,159.46,159.37,3.38]
[1752354662508,1.97250132,159.38,159.37,3.38]
[1752354663012,11.70460132,159.38,159.37,3.38]
[1752354663208,1.97250132,159.38,159.32,1.97250132]
[1752354663400,1.97250132,159.36,159.32,1.97250132]
[1752354663607,5.43250132,159.36,159.32,1.97250132]
[1752354664001,11.70560132,159.36,159.33,6.2738]
[1752354664203,1.97250132,159.35,159.28,5.23963213]
[1752354664407,1.97250132,159.35,159.27,546.93963213]
[1752354664607,1.97250132,159.35,159.32,6.2742]
[1752354664816,3.5027897,159.36,159.3,3.08731335]
[1752354665115,3.5027897,159.36,159.34,3.38]
[1752354666113,6.2736,159.35,159.27,541.7]
[1752354666317,9.8536,159.35,159.3,3.51]
[1752354667812,1.27,159.34,159.31,6.2748]
[1752354668010,1.27,159.34,159.32,3.51]
[1752354668414,1.27,159.34,159.33,9.7841]
[1752354669619,1.27,159.34,159.33,3.51]
[1752354670214,1.27,159.34,159.33,9.7841]
[1752354672420,1.27,159.34,159.33,3.51]
[1752354674121,1.27,159.34,159.33,9.7841]
[1752354674815,0.0427897,159.36,159.33,9.7841]
[1752354675012,0.0427897,159.36,159.35,12.87061335]
[1752354676918,0.0427897,159.36,159.35,3.51]
[1752354677222,3.6227897,159.36,159.33,3.51]
[1752354677424,9.8959897,159.36,159.34,3.51]
[1752354677619,3.58,159.35,159.34,3.51]
[1752354678424,9.8533,159.35,159.34,3.51]
[1752354678619,9.8533,159.35,159.31,6.2748]
[1752354678620,3.58,159.34,159.32,3.51]
[1752354679629,3.58,159.33,159.31,3.51]
[1752354679824,3.08731335,159.35,159.31,3.51]
[1752354679825,3.58,159.32,159.31,3.51]
[1752354684628,3.58,159.32,159.25,6.59731335]
[1752354684930,3.58,159.32,159.26,3.51]
[1752354685323,0.04716206,159.3,159.25,3.51]
[1752354685522,3.58,159.29,159.25,3.51]
[1752354685727,3.62716206,159.3,159.25,3.51]
[1752354685927,3.62716206,159.3,159.28,6.276]
[1752354686228,3.62716206,159.3,159.29,3.51]
[1752354689531,3.62716206,159.3,159.29,9.7856]
[1752354689722,0.04716206,159.3,159.29,9.7856]
[1752354690323,3.62716206,159.3,159.29,9.7856]
[1752354691535,3.62716206,159.3,159.29,3.51]
[1752354693927,9.90236206,159.3,159.29,3.51]
[1752354694335,3.58,159.29,159.22,3.08731335]
[1752354694731,3.58,159.29,159.22,6.59731335]
[1752354695135,9.8562,159.28,159.25,3.51]
[1752354695435,3.58,159.28,159.25,3.51]
[1752354695827,9.6366,159.27,159.25,3.51]
[1752354699734,3.36,159.27,159.26,3.65]
[1752354699940,3.36,159.28,159.26,3.65]
[1752354700440,3.36,159.28,159.26,9.9268]
[1752354700640,3.36,159.28,159.27,3.65]
[1752354700834,0.04637396,159.29,159.27,3.65]
[1752354702140,0.04637396,159.29,159.28,6.276]
[1752354702336,0.04637396,159.29,159.28,9.926]
[1752354708047,0.04637396,159.29,159.28,13.01331335]
[1752354710651,3.36,159.35,159.33,3.65]
[1752354712154,3.36,159.35,159.33,9.9238]
[1752354712353,3.36,159.38,159.34,6.73731335]
[1752354712756,3.36,159.37,159.35,3.65]
[1752354712952,6.2722,159.38,159.35,6.273]
[1752354713259,3.36,159.38,159.36,3.65]
[1752354714157,9.6322,159.38,159.36,3.65]
[1752354714457,3.36,159.38,159.36,3.65]
[1752354717156,3.36,159.37,159.36,3.65]
[1752354718158,9.6325,159.37,159.36,3.65]
[1752354720053,9.6325,159.37,159.35,0.04507301]
[1752354720054,9.6329,159.36,159.35,0.04507301]
[1752354720860,12.72021335,159.36,159.35,0.04507301]
[1752354721653,12.72021335,159.36,159.31,3.65]
[1752354721654,6.2744,159.32,159.31,3.65]
[1752354721859,3.36,159.32,159.27,3.65]
[1752354722054,3.36,159.34,159.28,3.08731335]
[1752354722259,3.36,159.36,159.33,3.65]
[1752354722463,3.36,159.38,159.33,3.65]
[1752354723059,0.04689794,159.37,159.33,3.65]
[1752354723362,3.36,159.36,159.33,3.65]
[1752354723664,6.2735,159.35,159.33,3.65]
[1752354727060,9.633,159.36,159.33,3.65]
[1752354727365,9.823,159.36,159.34,3.65]
[1752354729758,6.2733,159.35,159.34,3.65]
[1752354733770,9.8231,159.36,159.34,3.65]
[1752354734068,0.04689794,159.37,159.34,6.73731335]
[1752354734270,0.04689794,159.37,159.35,3.65]
[1752354735162,6.31959794,159.37,159.35,3.65]
[1752354738879,9.86959794,159.37,159.35,3.65]
[1752354742681,9.8229,159.36,159.35,3.65]
[1752354742875,6.2729,159.36,159.35,3.65]
[1752354743678,0.04689794,159.37,159.35,3.65]
[1752354743679,6.31969794,159.37,159.35,3.65]
[1752354744079,3.55,159.36,159.29,3.65]
[1752354744279,6.2732,159.36,159.33,3.65]
[1752354744980,6.31570908,159.36,159.33,3.65]
[1752354745582,0.04250908,159.36,159.34,3.08731335]
[1752354745778,0.04250908,159.36,159.35,3.65]
[1752354746280,0.04250908,159.36,159.35,9.9233]
[1752354748871,3.55,159.41,159.35,3.65]
[1752354749078,3.55,159.41,159.37,3.65]
[1752354749280,9.8215,159.4,159.37,3.65]
[1752354751778,9.8215,159.4,159.37,6.2724]
[1752354751985,6.2715,159.4,159.38,3.65]
[1752354752187,9.8215,159.4,159.38,3.65]
[1752354753794,190.6006,159.42,159.38,6.73731335]
[1752354754092,3.55,159.41,159.39,3.65]
[1752354754591,3.55,159.4,159.39,3.65]
[1752354755883,9.8213,159.4,159.39,3.65]
[1752354756090,3.62,159.41,159.38,3.36]
[1752354757096,6.2717,159.39,159.38,3.36]
[1752354757290,9.8917,159.39,159.38,3.36]
[1752354759100,9.8921,159.38,159.37,0.04159518]
[1752354765501,12.97941335,159.38,159.37,0.04159518]
[1752354769902,12.97941335,159.38,159.37,3.40159518]
[1752354770097,9.8921,159.38,159.37,3.40159518]
[1752354780408,12.97941335,159.38,159.37,0.04159518]
[1752354784411,12.97941335,159.38,159.37,3.40159518]
[1752354790112,6.2721,159.38,159.37,3.40159518]
[1752354793916,180.74,159.4,159.37,3.40159518]
[1752354793917,6.2718,159.39,159.37,3.40159518]
[1752354798620,187.0115,159.4,159.37,9.67409518]
[1752354799022,187.0115,159.4,159.38,3.61]
[1752354801723,180.74,159.4,159.38,6.2721]
[1752354802027,180.74,159.4,159.39,3.61]
[1752354802817,3.64,159.43,159.39,3.61]
[1752354803023,6.2708,159.42,159.39,3.61]
[1752354803326,184.32,159.43,159.39,3.61]
[1752354803523,6.2706,159.42,159.39,3.61]
[1752354803927,6.2706,159.42,159.4,3.61]
[1752354805729,6.2709,159.41,159.4,3.61]
[1752354806724,6.2707,159.42,159.4,3.61]
[1752354807226,180.68,159.43,159.4,3.61]
[1752354807726,186.9504,159.43,159.4,9.8813]
[1752354808126,186.9504,159.43,159.41,3.61]
[1752354809931,6.2705,159.42,159.41,3.61]
[1752354813430,9.9105,159.42,159.41,3.61]
[1752354815634,3.64,159.41,159.39,3.66]
[1752354815833,182.59391108,159.4,159.39,3.66]
[1752354816131,9.9121,159.38,159.37,3.70159518]
[1752354816631,6.2721,159.38,159.37,3.70159518]
[1752354819536,9.9121,159.38,159.37,3.70159518]
[1752354820639,6.2721,159.38,159.37,3.70159518]
[1752354824541,9.9121,159.38,159.37,3.70159518]
[1752354825238,12.99819353,159.38,159.37,0.04159518]
[1752354829442,12.99819353,159.38,159.33,3.66]
[1752354829646,9.9137,159.34,159.33,3.66]
[1752354832050,6.275,159.31,159.26,3.08609353]
[1752354832441,3.64,159.33,159.28,6.276]
[1752354832642,3.64,159.33,159.29,3.66]
[1752354832850,0.04601006,159.3,159.29,3.66]
[1752354835451,0.04601006,159.3,159.29,9.9356]
[1752354836053,186.8934,159.35,159.32,3.66]
[1752354836253,190.5434,159.35,159.32,3.66]
[1752354837256,190.5434,159.35,159.32,3.70192292]
[1752354839959,190.5434,159.35,159.32,9.97622292]
[1752354840157,184.27,159.35,159.33,3.66]
[1752354840356,6.73795464,159.34,159.32,0.04192292]
[1752354840561,3.65,159.33,159.32,0.04192292]
[1752354840854,3.65,159.33,159.24,3.66]
[1752354841056,3.08795464,159.29,159.24,6.2773]
[1752354841252,3.08795464,159.29,159.22,3.08795464]
[1752354841253,3.65,159.28,159.25,3.66]
[1752354841456,3.65,159.28,159.23,3.66]
[1752354841763,9.927,159.26,159.25,0.04233019]
[1752354844262,3.65,159.26,159.25,0.04233019]